bitfinex/quotes_ETHUSD_20260119
["timestamp","ask_amount","ask_price","bid_price","bid_amount"]
[1768854024175,2.60108729,3219.5,3218.8,0.36226719]
[1768854024336,2.60108729,3219.5,3218.7,0.0028024]
[1768854025269,2.60108729,3219.5,3218.7,3.10963784]
[1768854025473,3.10571319,3219.9,3218.7,3.10963784]
[1768854025474,2.60108729,3219.8,3218.8,3.10674734]
[1768854025657,0.513,3219.6,3218.8,3.10674734]
[1768854025841,0.513,3219.6,3219.0,0.002]
[1768854026342,3.11408729,3219.6,3219.0,0.002]
[1768854027138,3.6189888,3219.6,3219.0,0.002]
[1768854027339,2.60108729,3219.5,3219.0,0.002]
[1768854030769,2.60108729,3219.9,3219.0,0.002]
[1768854031075,3.11408729,3220.0,3219.0,5.78522852]
[1768854031488,3.11408729,3220.0,3219.0,0.002]
[1768854032644,2.60108729,3219.8,3219.0,0.002]
[1768854035579,2.60108729,3219.6,3219.0,0.002]
[1768854039101,2.60108729,3219.6,3219.3,0.002]
[1768854039492,2.60108729,3219.5,3219.3,0.002]
[1768854042709,2.20968222,3219.7,3219.3,0.002]
[1768854043291,2.20968222,3219.6,3219.3,0.002]
[1768854047115,2.72268222,3219.6,3219.3,0.002]
[1768854051008,0.513,3219.7,3219.3,0.002]
[1768854052140,2.20968222,3220.0,3219.3,0.002]
[1768854052313,2.72268222,3220.0,3219.3,0.002]
[1768854053042,2.20968222,3220.0,3219.3,0.002]
[1768854056634,2.63344892,3220.3,3219.4,5.78322852]
[1768854056991,5.73877417,3220.3,3219.4,5.78322852]
[1768854057151,5.73877417,3220.3,3219.3,0.002]
[1768854057152,2.12044892,3220.2,3219.3,0.002]
[1768854057352,5.22592107,3220.2,3219.3,0.002]
[1768854059192,2.12044892,3220.1,3219.3,3.10826533]
[1768854060251,3.1053054,3220.3,3219.3,3.10826533]
[1768854060458,5.22575432,3220.3,3219.3,3.10826533]
[1768854060754,2.12044892,3220.2,3219.3,3.10826533]
[1768854061177,5.22586116,3220.2,3219.3,3.10826533]
[1768854061545,2.12044892,3220.2,3219.3,3.10826533]
[1768854063890,2.12044892,3220.2,3219.6,0.002]
[1768854064561,2.12044892,3220.1,3219.6,0.002]
[1768854076683,2.12044892,3220.1,3219.9,0.002]
[1768854094234,6.34,3220.8,3219.9,0.002]
[1768854094444,1.75292027,3222.2,3221.5,0.16204206]
[1768854094650,0.002,3223.5,3221.9,5.78897151]
[1768854094651,1.13164791,3222.8,3221.9,5.78897151]
[1768854094936,1.75292027,3222.9,3221.9,5.78897151]
[1768854095141,1.75292027,3222.9,3222.2,5.78897151]
[1768854096421,1.75292027,3222.9,3222.0,0.513]
[1768854096822,1.75292027,3222.9,3222.2,3.10342117]
[1768854097240,1.75292027,3222.9,3222.2,8.89239268]
[1768854098527,1.75292027,3222.9,3222.2,11.99586235]
[1768854100213,1.75292027,3222.9,3222.2,6.20689084]
[1768854101028,1.75292027,3222.9,3222.1,6.20713198]
[1768854101235,1.75292027,3222.9,3222.2,0.001]
[1768854105030,1.59440867,3223.0,3222.3,0.86389898]
[1768854105438,1.59440867,3223.0,3222.4,0.84869731]
[1768854105638,1.59440867,3223.0,3222.5,0.39519777]
[1768854106560,1.59440867,3223.0,3222.0,0.513]
[1768854106561,1.59240867,3222.7,3221.3,1.22986803]
[1768854106758,5.78897151,3222.5,3221.5,1.22986803]
[1768854106957,1.59240867,3222.4,3221.4,3.61617596]
[1768854107161,1.59240867,3222.4,3221.4,4.84604399]
[1768854107535,1.59240867,3222.2,3221.4,3.10417596]
[1768854107737,1.59240867,3222.2,3221.3,3.10426229]
[1768854107942,1.59240867,3221.9,3221.1,1.21501357]
[1768854108152,1.59240867,3221.9,3221.1,4.31949109]
[1768854109158,5.78897151,3221.7,3220.6,1.20032973]
[1768854109364,1.59240867,3221.6,3220.6,1.20032973]
[1768854109541,1.59240867,3221.6,3220.8,1.34781818]
[1768854110463,4.69649171,3221.6,3220.8,1.34781818]
[1768854110656,1.59240867,3221.5,3220.8,1.34781818]
[1768854111662,1.59240867,3221.5,3220.9,3.10471801]
[1768854112177,1.59240867,3221.5,3221.0,3.10458716]
[1768854112551,1.59240867,3221.5,3221.1,3.10450952]
[1768854113295,1.62990284,3221.7,3221.1,4.81617024]
[1768854113634,1.62990284,3221.7,3221.2,1.71166072]
[1768854114192,3.10347101,3222.2,3221.2,1.71166072]
[1768854114193,4.73349575,3222.1,3221.2,1.71166072]
[1768854114478,1.62990284,3222.0,3221.2,1.71166072]
[1768854114680,1.62990284,3222.0,3221.0,3.10460007]
[1768854115137,1.62990284,3222.0,3221.0,4.81626079]
[1768854115577,1.62990284,3221.8,3220.9,3.10568589]
[1768854115740,1.62990284,3221.8,3221.0,1.71166072]
[1768854117975,1.62990284,3221.7,3221.1,1.71166072]
[1768854119884,1.62990284,3221.6,3220.9,0.001]
[1768854120086,1.62990284,3221.6,3220.9,1.71266072]
[1768854120583,1.62990284,3221.4,3220.9,0.001]
[1768854121163,1.62990284,3221.3,3220.9,0.001]
[1768854123391,1.62990284,3221.2,3220.9,0.001]
[1768854127099,3.10375865,3221.9,3220.9,1.71266072]
[1768854127394,4.73366149,3221.9,3220.9,1.71266072]
[1768854127567,1.62990284,3221.8,3220.9,1.71266072]
[1768854127773,4.73377596,3221.8,3221.1,1.71166072]
[1768854132131,4.73356645,3222.0,3221.2,1.71166072]
[1768854132269,1.62990284,3222.0,3221.2,1.71166072]
[1768854133102,1.62990284,3222.0,3221.4,1.71166072]
[1768854135312,1.62990284,3221.9,3221.4,1.71166072]
[1768854135835,1.62990284,3221.9,3221.0,0.512]
[1768854135836,1.62990284,3221.9,3221.2,1.71166072]
[1768854135977,1.62990284,3221.9,3221.2,1.71266072]
[1768854136176,0.002,3221.7,3221.2,1.71266072]
[1768854136414,1.63190284,3221.7,3221.2,1.71266072]
[1768854137981,1.63190284,3221.7,3221.2,0.001]
[1768854138206,1.62990284,3221.6,3221.2,0.001]
[1768854139631,1.62990284,3221.4,3221.2,0.001]
[1768854143410,2.41506542,3221.3,3221.2,0.001]
[1768854143614,2.41506542,3221.3,3220.6,2.37118833]
[1768854143818,2.41506542,3221.3,3220.4,2.37118833]
[1768854144128,2.41506542,3221.1,3220.4,2.37118833]
[1768854144601,2.41506542,3221.1,3220.4,5.47638518]
[1768854145238,2.41506542,3221.1,3220.5,2.37118833]
[1768854145737,2.41506542,3221.1,3220.3,2.37118833]
[1768854145938,2.41506542,3221.1,3220.3,5.47644556]
[1768854146104,2.41506542,3221.1,3220.3,2.37118833]
[1768854146309,3.10462589,3221.0,3220.3,2.37118833]
[1768854146649,3.10446851,3221.2,3220.3,2.37118833]
[1768854146650,2.41506542,3220.9,3220.3,2.37118833]
[1768854147110,2.41506542,3220.9,3220.1,5.47663483]
[1768854147541,2.41506542,3220.9,3220.1,2.37118833]
[1768854147849,2.41506542,3220.9,3219.9,0.002]
[1768854148736,2.41506542,3220.7,3219.9,0.002]
[1768854149045,2.41506542,3220.5,3219.9,0.001]
[1768854150232,2.41506542,3220.3,3219.6,0.002]
[1768854150402,2.41506542,3220.1,3219.6,0.002]
[1768854151835,2.41506542,3220.3,3219.6,2.37318833]
[1768854152133,0.513,3220.2,3219.6,2.37318833]
[1768854154599,3.10514851,3220.5,3219.7,2.37118833]
[1768854154600,3.61822449,3220.4,3219.7,2.37118833]
[1768854154803,6.03328991,3220.4,3219.7,2.37118833]
[1768854155624,2.41506542,3220.3,3219.7,2.37118833]
[1768854155921,2.41506542,3220.3,3219.6,0.002]
[1768854156125,6.72349196,3220.4,3219.6,0.002]
[1768854156126,2.41506542,3220.1,3219.6,0.002]
[1768854156525,3.10559006,3220.0,3219.6,0.002]
[1768854156728,2.41506542,3219.9,3219.6,0.002]
[1768854166239,5.81905157,3220.1,3219.6,2.97582233]
[1768854166550,2.71254839,3220.0,3219.6,2.97582233]
[1768854168058,2.71254839,3220.0,3219.6,0.002]
[1768854168768,2.71254839,3220.7,3220.1,2.84441985]
[1768854168915,2.71254839,3220.7,3219.6,0.002]
[1768854168916,3.22554839,3220.7,3219.6,0.002]
[1768854169251,2.71254839,3220.1,3219.6,0.002]
[1768854169558,2.71254839,3219.8,3218.9,2.88274964]
[1768854169762,2.71254839,3219.6,3218.7,3.39855204]
[1768854170133,2.71254839,3219.4,3218.7,6.5053664]
[1768854170340,2.71254839,3219.4,3218.8,2.9206387]
[1768854172961,2.71254839,3219.4,3219.3,0.002]
[1768854174228,5.81871724,3219.4,3219.3,0.002]
[1768854174941,2.71254839,3219.4,3219.3,0.002]
[1768854176430,5.81871724,3219.4,3219.3,0.002]
[1768854176627,3.01510048,3219.3,3218.7,0.5158024]
[1768854177041,3.01510048,3219.2,3218.7,0.5158024]
[1768854178045,3.01510048,3219.2,3218.7,3.62263591]
[1768854179030,3.01510048,3219.2,3218.7,6.54972654]
[1768854179365,3.01510048,3219.2,3218.8,2.89990039]
[1768854179567,3.01510048,3219.5,3218.8,2.89990039]
[1768854179734,3.01510048,3219.5,3218.7,3.62263591]
[1768854179934,3.01510048,3219.5,3218.9,2.89990039]
[1768854181073,3.01510048,3219.4,3218.9,2.89990039]
[1768854183785,3.01510048,3219.3,3218.7,3.31002923]
[1768854183955,3.01510048,3219.3,3218.7,0.5158024]
[1768854184960,3.01610048,3219.3,3218.7,0.5158024]
[1768854187594,3.01610048,3219.3,3218.7,3.20912772]
[1768854188172,3.01610048,3219.3,3218.7,6.31595518]
[1768854188986,3.01610048,3219.3,3218.7,3.20912772]
[1768854192659,3.01610048,3219.3,3218.7,6.31595062]
[1768854193693,3.01610048,3219.3,3218.7,3.20912772]
[1768854194387,3.01510048,3219.2,3218.7,3.20912772]
[1768854195198,3.01510048,3219.2,3218.7,6.31590127]
[1768854195494,3.01510048,3219.2,3218.7,3.20912772]
[1768854196403,0.001,3219.3,3219.0,2.48464422]
[1768854196705,0.27125484,3220.0,3219.1,2.48264422]
[1768854196706,3.01510048,3219.9,3219.1,2.48264422]
[1768854199004,3.01510048,3219.7,3219.1,2.48264422]
[1768854200626,3.01510048,3219.7,3219.2,2.39581328]
[1768854202975,3.10573585,3219.9,3219.2,2.39581328]
[1768854203299,2.85833066,3219.8,3219.2,2.39581328]
[1768854205208,5.96414138,3219.8,3219.2,2.39581328]
[1768854205410,2.85833066,3219.8,3219.2,2.39581328]
[1768854205627,5.96412128,3219.8,3219.2,2.39581328]
[1768854208132,0.001,3219.5,3219.2,2.39581328]
[1768854208304,0.001,3219.5,3219.1,2.21451136]
[1768854209832,0.001,3219.5,3219.2,2.1955058]
[1768854215834,0.001,3219.5,3219.1,2.08596988]
[1768854219371,0.001,3219.4,3219.1,2.08596988]
[1768854226576,0.001,3219.5,3219.2,1.88841269]
[1768854226938,2.98062299,3219.9,3219.2,1.88841269]
[1768854227560,2.46762299,3219.8,3219.2,1.88841269]
[1768854229266,2.46762299,3219.8,3219.0,0.002]
[1768854229567,2.46762299,3219.8,3219.0,1.84515649]
[1768854229737,2.46762299,3219.6,3219.0,1.84515649]
[1768854230345,2.46762299,3219.6,3219.1,1.82841629]
[1768854231450,2.46762299,3219.6,3219.3,0.002]
[1768854231671,0.001,3219.4,3219.3,0.002]
[1768854238873,2.36221247,3219.4,3219.3,0.002]
[1768854239575,0.001,3219.4,3219.3,0.002]
[1768854240145,2.36121247,3219.7,3219.3,0.002]
[1768854240447,3.10583083,3219.8,3219.3,0.002]
[1768854240648,2.36121247,3219.7,3219.3,0.002]
[1768854241764,5.46694751,3219.9,3219.3,1.66619928]
[1768854241967,2.36121247,3219.9,3219.3,1.66619928]
[1768854242159,2.36121247,3219.8,3219.3,1.66619928]
[1768854242973,2.36121247,3219.8,3219.3,0.002]
[1768854243580,2.36121247,3219.7,3219.3,0.002]
[1768854248791,2.36121247,3219.6,3219.3,0.002]
[1768854254596,0.001,3219.4,3219.3,0.002]
[1768854254895,2.36121247,3219.6,3219.3,0.002]
[1768854258796,0.513,3220.0,3219.3,2.56369324]
[1768854258996,5.9807724,3220.1,3219.5,2.56169324]
[1768854259199,2.36121247,3220.0,3219.5,2.56169324]
[1768854259506,2.36121247,3220.0,3219.3,0.002]
[1768854259705,2.36121247,3219.9,3219.4,2.56169324]
[1768854262219,2.36121247,3219.8,3219.4,2.56169324]
[1768854266215,0.001,3219.6,3219.4,2.56169324]
[1768854266413,2.36121247,3219.8,3219.4,2.56169324]
[1768854269783,2.36121247,3219.8,3219.4,5.6678417]
[1768854270079,4.7142585,3219.8,3219.3,3.10820318]
[1768854270277,2.35304603,3219.7,3219.3,0.002]
[1768854270475,4.7142585,3219.8,3219.3,2.34012477]
[1768854272337,2.36121247,3219.8,3219.4,2.33812477]
[1768854274306,2.35304603,3219.7,3219.3,0.002]
[1768854275033,2.36121247,3219.8,3219.3,2.34012477]
[1768854275207,4.7142585,3219.8,3219.3,2.34012477]
[1768854276127,4.7142585,3219.8,3219.3,5.44635804]
[1768854276327,4.7142585,3219.8,3219.4,2.33812477]
[1768854277109,2.35304603,3219.8,3219.4,2.33812477]
[1768854277917,2.35304603,3219.8,3219.6,0.002]
[1768854279008,2.35304603,3219.9,3219.6,0.002]
[1768854279212,2.36121247,3219.7,3219.6,0.002]
[1768854287657,0.001,3220.1,3219.6,2.20162385]
[1768854288158,2.27176246,3220.1,3219.6,2.20162385]
[1768854288453,5.37727339,3220.1,3219.6,2.20162385]
[1768854289544,2.28851784,3220.0,3219.6,2.20162385]
[1768854294353,2.18483792,3219.9,3219.6,0.002]
[1768854297545,2.28851784,3219.8,3219.6,0.002]
[1768854298657,2.28851784,3219.8,3219.6,2.04247501]
[1768854301396,2.18483792,3219.7,3218.9,6.12355843]
[1768854301618,2.18583792,3219.7,3219.1,3.61941076]
[1768854302107,2.18583792,3219.7,3219.1,5.65988577]
[1768854302672,2.18483792,3219.6,3218.8,2.55347501]
[1768854302874,2.18483792,3219.6,3218.8,0.513]
[1768854303082,2.18483792,3219.6,3218.8,3.61969962]
[1768854304039,2.18483792,3219.6,3218.9,3.10661768]
[1768854304624,2.18483792,3219.4,3218.9,3.10661768]
[1768854305010,2.18483792,3219.4,3218.9,5.14709269]
[1768854305446,2.18483792,3219.4,3219.0,2.04247501]
[1768854305849,1e-08,3219.4,3219.0,2.04247501]
[1768854306559,2.18483792,3219.6,3219.0,5.14897557]
[1768854306850,2.18483792,3219.6,3219.1,2.04047501]
[1768854307421,2.18483792,3219.6,3219.0,3.10850056]
[1768854307822,2.18483792,3219.6,3219.1,2.04047501]
[1768854308037,2.28851784,3219.5,3219.1,2.04047501]
[1768854308427,4.47335576,3219.5,3219.1,2.04047501]
[1768854308724,4.47335576,3219.5,3219.0,5.14897557]
[1768854313251,4.47335576,3219.5,3219.3,0.002]
[1768854316553,4.47335576,3219.5,3218.8,0.513]
[1768854316554,2.18483792,3219.4,3218.8,5.14717204]
[1768854316751,2.18483792,3219.4,3219.0,3.10653506]
[1768854316929,2.80151784,3219.5,3218.9,2.04047501]
[1768854317134,2.80151784,3219.5,3219.0,2.04047501]
[1768854317653,4.98635576,3219.5,3219.0,2.04047501]
[1768854317857,2.18483792,3219.4,3218.8,5.14718785]
[1768854318555,2.18483792,3219.4,3218.7,3.10961408]
[1768854318924,2.18483792,3219.4,3218.7,5.15008909]
[1768854320978,2.28851784,3219.3,3218.7,5.15008909]
[1768854321262,4.47335576,3219.3,3218.7,5.15008909]
[1768854323540,4.47335576,3219.3,3218.8,1.98953041]
[1768854324160,2.10460072,3219.2,3218.7,5.09914449]
[1768854324363,2.28851784,3219.3,3218.8,1.98953041]
[1768854324859,2.28851784,3219.3,3219.0,0.002]
[1768854325040,0.001,3219.1,3219.0,0.002]
[1768854325358,0.513,3219.5,3219.0,1.99153041]
[1768854326660,2.61760072,3219.5,3219.0,1.99153041]
[1768854327257,2.10460072,3219.5,3219.0,1.99153041]
[1768854328462,2.61760072,3219.6,3219.0,1.99153041]
[1768854329565,3.19005001,3219.6,3219.0,1.99153041]
[1768854330057,2.10460072,3219.5,3219.0,1.99153041]
[1768854330665,2.10460072,3219.5,3219.0,5.09806675]
[1768854331367,2.10460072,3219.5,3219.0,1.99153041]
[1768854331669,2.10460072,3219.5,3219.0,0.002]
[1768854331845,2.10460072,3219.4,3219.0,0.002]
[1768854336677,0.001,3219.1,3219.0,0.002]
[1768854337146,2.10460072,3219.2,3219.0,0.002]
[1768854342582,1.22197969,3219.4,3219.0,0.002]
[1768854344662,0.513,3219.6,3219.0,2.05923348]
[1768854345562,1.22763152,3219.7,3219.0,2.05923348]
[1768854345764,0.513,3219.6,3219.0,2.05923348]
[1768854346567,0.513,3219.6,3219.0,3.10851441]
[1768854346767,0.513,3219.6,3219.1,2.05723348]
[1768854348387,0.001,3219.3,3219.1,2.05723348]
[1768854348706,0.513,3219.6,3219.1,2.05723348]
[1768854349355,0.513,3219.6,3219.2,2.05723348]
[1768854350061,0.514,3219.7,3219.2,2.05723348]
[1768854350783,1.71478506,3219.7,3219.2,2.05723348]
[1768854351802,0.001,3219.7,3219.3,2.05723348]
[1768854357816,0.001,3219.7,3219.4,2.06827963]
[1768854358101,3.61950609,3220.1,3219.4,2.06827963]
[1768854358313,4.73862021,3220.1,3219.4,2.06827963]
[1768854358602,1.10942581,3220.0,3219.4,2.06827963]
[1768854359603,1.10942581,3220.0,3219.2,2.06827963]
[1768854359801,6.72505723,3220.1,3219.3,2.06827963]
[1768854359802,0.001,3219.4,3219.3,2.06827963]
[1768854360105,1.09984877,3219.8,3219.3,2.06827963]
[1768854362086,0.001,3220.1,3219.5,2.06827963]
[1768854364916,0.001,3220.1,3219.6,2.06827963]
[1768854367190,0.001,3220.1,3219.7,2.06827963]
[1768854370004,1.01092477,3220.1,3219.2,0.513]
[1768854370208,1.01092477,3220.1,3219.3,2.06827963]
[1768854371227,0.001,3220.1,3219.6,2.06827963]
[1768854371884,0.001,3219.8,3219.6,2.06827963]
[1768854372082,0.001,3220.1,3219.6,2.06827963]
[1768854372526,0.001,3220.1,3219.7,2.06827963]
[1768854373103,1.05960641,3220.1,3219.7,2.06827963]
[1768854373428,4.15697323,3220.1,3219.4,2.06827963]
[1768854373638,4.15697323,3220.1,3219.6,2.06827963]
[1768854374439,4.15697323,3220.1,3219.1,2.06827963]
[1768854374440,1.04240625,3220.0,3219.1,2.06827963]
[1768854374639,1.55540625,3220.0,3219.4,2.06827963]
[1768854374929,1.04240625,3219.9,3219.4,2.06827963]
[1768854382611,0.513,3220.0,3219.4,2.06827963]
[1768854382807,0.001,3220.1,3219.5,2.06827963]
[1768854383138,0.001,3220.1,3219.6,1.93293829]
[1768854383139,0.513,3220.0,3219.6,1.93293829]
[1768854384015,0.001,3219.8,3219.6,1.93293829]
[1768854384245,0.513,3220.0,3219.7,1.93293829]
[1768854386553,0.513,3220.0,3219.4,3.10616301]
[1768854386758,0.513,3220.0,3219.5,1.93293829]
[1768854392260,0.001,3220.1,3219.5,1.93293829]
[1768854392463,0.001,3220.1,3219.7,1.93293829]
[1768854395771,0.001,3220.1,3219.7,1.93493829]
[1768854398948,0.001,3220.1,3219.8,1.93293829]
[1768854399149,0.513,3220.4,3219.8,1.93293829]
[1768854400296,0.513,3220.4,3219.9,1.93293829]
[1768854403703,0.513,3220.4,3220.0,1.81120269]
[1768854406092,0.81752769,3220.5,3220.0,1.81120269]
[1768854406308,1.33052769,3220.5,3220.0,1.81120269]
[1768854407164,0.81196201,3221.2,3220.1,1.81120269]
[1768854407366,0.81196201,3221.0,3220.1,1.81120269]
[1768854407586,0.65696201,3221.0,3220.1,1.81120269]
[1768854408301,6.20942862,3221.0,3220.2,1.81120269]
[1768854408501,0.64602171,3220.9,3220.2,1.81120269]
[1768854411942,3.73489665,3220.8,3220.2,1.81120269]
[1768854412109,0.63007798,3220.7,3220.2,1.81120269]
[1768854412301,0.63007798,3220.7,3220.0,1.81120269]
[1768854413230,0.62372151,3220.6,3220.0,1.81120269]
[1768854419141,0.62372151,3220.6,3220.3,0.001]
[1768854421843,3.61791825,3220.7,3220.3,0.001]
[1768854422937,3.61791825,3220.7,3220.3,1.81018144]
[1768854422938,3.10491825,3220.7,3220.3,1.81018144]
[1768854425047,4.23169235,3220.8,3220.3,1.81018144]
[1768854426843,3.61785912,3220.8,3220.3,1.81018144]
[1768854427145,0.513,3220.8,3220.3,1.81018144]
[1768854427449,0.513,3220.8,3220.4,1.80918144]
[1768854427621,3.71343917,3221.0,3220.4,1.80918144]
[1768854427820,0.513,3220.9,3220.4,1.80918144]
[1768854429047,0.60682252,3220.8,3220.3,0.001]
[1768854429253,0.60682252,3220.8,3220.3,1.81018144]
[1768854430451,0.60682252,3220.8,3220.6,0.001]
[1768854435466,3.71165509,3220.8,3220.6,0.001]
[1768854437053,6.20966514,3220.8,3220.6,0.001]
[1768854437261,0.59947466,3220.7,3220.6,0.001]
[1768854437560,3.70438974,3220.7,3220.6,0.001]
[1768854438156,0.59947466,3220.7,3220.6,0.001]
[1768854439557,0.59688963,3220.6,3220.3,0.001]
[1768854440560,3.52664775,3220.7,3220.3,0.001]
[1768854440948,3.52664775,3220.7,3220.3,1.81018144]
[1768854441148,3.10491508,3220.7,3220.3,1.81018144]
[1768854441870,3.10491508,3220.7,3220.6,0.001]
[1768854446946,3.10486772,3220.8,3220.6,0.001]
[1768854460154,3.10486772,3220.8,3220.6,1.96325926]
[1768854461286,3.61775798,3220.9,3220.6,1.96325926]
[1768854463985,6.72251596,3220.9,3220.6,1.96325926]
[1768854464285,6.72251596,3220.9,3220.6,0.001]
[1768854465060,3.61775798,3220.9,3220.6,0.001]
[1768854465260,3.61975798,3220.9,3220.6,0.001]
[1768854466360,3.61975798,3220.9,3220.6,1.85938669]
[1768854466594,0.513,3220.8,3220.6,1.85938669]
[1768854466970,3.10675798,3220.9,3220.6,1.85938669]
[1768854467172,0.513,3220.8,3220.6,1.85938669]
[1768854468391,1.55688274,3223.5,3220.7,1.85838669]
[1768854468392,0.002,3222.0,3220.7,1.85838669]
[1768854468596,0.002,3223.5,3222.0,1.85838669]
[1768854468597,0.002,3223.3,3222.0,1.85838669]
[1768854468769,0.002,3223.3,3222.8,1.74390963]
[1768854468967,0.002,3223.3,3222.3,5.94953848]
[1768854468968,1.03296842,3223.1,3222.4,1.85838669]
[1768854469559,0.513,3223.1,3222.4,1.85838669]
[1768854471195,0.515,3223.2,3222.4,3.10327084]
[1768854471490,0.515,3223.2,3222.5,1.85838669]
[1768854472161,0.513,3223.1,3222.5,1.85838669]
[1768854474767,0.513,3223.1,3222.6,1.93617774]
[1768854478770,0.513,3223.1,3222.8,1.93617774]
[1768854479297,0.515,3223.1,3222.8,1.93617774]
[1768854482991,0.002,3223.1,3222.8,1.93617774]
[1768854483203,3.1042272,3223.5,3223.1,1.93617774]
[1768854483204,0.002,3223.5,3223.1,1.93617774]
[1768854483373,0.512,3223.4,3223.1,1.93617774]
[1768854484403,0.49579989,3223.4,3222.9,1.93617774]
[1768854484993,0.49579989,3223.4,3222.9,3.10274203]
[1768854485275,0.41750595,3223.4,3223.0,1.93617774]
[1768854485502,0.40130994,3223.4,3223.0,1.93617774]
[1768854491088,0.40130994,3223.4,3223.3,0.001]
[1768854497744,0.512,3223.4,3223.3,1.93717774]
[1768854503647,3.10196911,3223.8,3223.4,1.96819418]
[1768854504089,3.10196911,3223.8,3223.4,1.99213305]
[1768854504595,0.512,3223.7,3223.4,1.99213305]
[1768854505299,3.61405051,3223.7,3223.4,1.99213305]
[1768854507568,0.512,3223.6,3223.4,1.99213305]
[1768854507768,0.512,3223.6,3223.4,0.02393887]
[1768854508698,0.512,3223.5,3223.4,1.99213305]
[1768854509597,0.512,3223.5,3223.4,1.90983911]
[1768854511394,3.61421808,3223.5,3223.4,1.90983911]
[1768854511684,0.512,3223.5,3223.3,0.001]
[1768854511859,0.512,3223.5,3223.3,1.96919418]
[1768854514191,3.61423067,3223.5,3223.3,1.96919418]
[1768854516787,3.61423067,3223.5,3223.3,0.001]
[1768854516989,5.00036123,3223.5,3223.3,0.001]
[1768854517163,0.512,3223.5,3223.3,0.001]
[1768854519687,3.61422635,3223.5,3223.3,0.001]
[1768854524677,0.512,3223.4,3223.3,0.001]
[1768854527009,3.61431432,3223.4,3223.3,0.001]
[1768854527309,3.61431432,3223.4,3222.8,1.99151819]
[1768854531809,5.07439011,3223.4,3222.8,1.99151819]
[1768854533922,3.61431432,3223.4,3222.8,1.99151819]
[1768854534090,1.47248237,3223.3,3222.8,1.99151819]
[1768854534621,5.09083758,3223.4,3222.8,1.99151819]
[1768854537135,5.09083758,3223.4,3223.1,0.001]
[1768854544016,1.51086537,3223.3,3223.1,0.001]
[1768854544229,1.50986537,3223.2,3222.7,2.11433452]
[1768854544599,1.50986537,3223.2,3222.7,0.001]
[1768854545300,1.50986537,3223.2,3222.7,2.11433452]
[1768854545501,4.61244978,3223.2,3222.7,2.11433452]
[1768854547528,7.71503419,3223.2,3222.7,2.11433452]
[1768854548224,7.71503419,3223.2,3222.7,0.001]
[1768854548426,1.52401926,3223.1,3222.7,0.001]
[1768854548627,1.52745672,3222.9,3222.3,2.11333452]
[1768854548816,1.52745672,3222.9,3221.9,2.11333452]
[1768854549018,1.52645672,3222.8,3221.9,2.11333452]
[1768854549200,1.52645672,3222.7,3221.9,2.11333452]
[1768854549401,1.52645672,3222.5,3221.9,2.11333452]
[1768854549726,3.10318767,3222.5,3221.9,2.11333452]
[1768854551321,1.53662562,3223.0,3222.0,2.11333452]
[1768854551525,0.512,3222.9,3222.2,2.11333452]
[1768854551715,0.512,3222.8,3222.3,2.11333452]
[1768854553635,3.10266248,3223.1,3222.4,2.11333452]
[1768854553636,0.512,3222.7,3222.4,2.11333452]
[1768854553839,0.07838505,3222.6,3222.4,2.11333452]
[1768854554037,2.94660458,3223.1,3222.4,2.11333452]
[1768854554224,2.63460458,3223.1,3222.4,2.11333452]
[1768854554409,2.63460458,3223.1,3222.6,0.02393886]
[1768854554613,0.512,3223.0,3222.7,2.11333452]
[1768854559539,3.61474538,3223.0,3222.7,2.11333452]
[1768854559747,0.512,3223.0,3222.7,2.11333452]
[1768854560134,0.2,3222.9,3222.8,2.11333452]
[1768854560338,0.4,3223.0,3222.8,2.11333452]
[1768854561909,0.4,3223.0,3222.6,2.13727338]
[1768854563542,2.49888134,3223.0,3222.6,2.13727338]
[1768854564843,2.09888134,3222.9,3222.6,0.02393886]
[1768854566748,2.09888134,3222.8,3222.6,0.02393886]
[1768854575145,2.09888134,3222.7,3222.0,2.15626199]
[1768854575346,2.61088134,3222.6,3221.8,5.26009083]
[1768854575553,2.61088134,3222.6,3221.9,2.15626199]
[1768854576977,3.10318076,3222.5,3221.9,2.15626199]
[1768854577140,2.09888134,3222.4,3221.9,2.15626199]
[1768854580277,5.20216019,3222.4,3221.9,2.15626199]
[1768854584469,5.20216019,3222.4,3222.2,0.001]
[1768854586372,1.91142323,3222.3,3222.2,0.001]
[1768854588974,5.01479659,3222.3,3222.2,0.001]
[1768854589541,1.91142323,3222.2,3221.6,1.85965612]
[1768854589844,2.42342323,3222.2,3221.7,1.85965612]
[1768854593985,2.42342323,3222.2,3221.4,3.10419683]
[1768854593986,1.73660888,3222.1,3221.4,3.10419683]
[1768854594162,1.73660888,3222.1,3221.5,1.82947151]
[1768854596577,1.73660888,3222.1,3221.4,3.10421267]
[1768854596578,1.73660888,3222.1,3221.8,0.001]
[1768854596976,4.8401863,3222.1,3221.8,0.001]
[1768854597662,3.10340593,3222.3,3221.8,1.83047151]
[1768854597663,1.73660888,3222.3,3221.8,1.83047151]
[1768854597866,0.512,3222.2,3221.8,1.83047151]
[1768854598788,4.83995362,3222.4,3221.8,1.83047151]
[1768854598976,0.512,3222.3,3221.8,1.83047151]
[1768854599565,2.24860888,3222.3,3221.8,1.83047151]
[1768854601496,0.512,3222.2,3221.8,1.83047151]
[1768854601801,1.73660888,3223.1,3222.1,1.82947151]
[1768854602214,0.512,3223.0,3222.1,1.82947151]
[1768854602397,2.24860888,3223.0,3222.1,1.82947151]
[1768854603065,0.512,3222.9,3222.1,4.93294632]
[1768854603268,3.61479657,3222.9,3222.2,1.82947151]
[1768854603467,4.83940545,3222.9,3222.2,1.82947151]
[1768854603690,0.512,3222.8,3222.2,1.82947151]
[1768854603968,0.512,3222.8,3222.4,1.82947151]
[1768854604678,4.83940545,3222.9,3222.4,1.82947151]
[1768854604880,0.512,3222.8,3222.4,1.82947151]
[1768854605199,1.73660888,3222.9,3222.4,1.82947151]
[1768854605382,0.512,3222.8,3222.4,1.82947151]
[1768854606600,3.61490293,3222.8,3222.4,1.82947151]
[1768854607087,3.61490293,3222.8,3222.1,1.82947151]
[1768854607088,1.73660888,3222.7,3222.1,1.82947151]
[1768854607270,1.73660888,3222.7,3221.9,1.82947151]
[1768854608271,1.73660888,3222.7,3222.0,1.83047151]
[1768854608499,1.73860888,3222.5,3222.0,1.83047151]
[1768854608705,2.24860888,3222.4,3222.0,1.83047151]
[1768854609279,0.512,3222.4,3222.0,1.83047151]